bitfinex/quotes_ETHUSD_20260225
["timestamp","ask_amount","ask_price","bid_price","bid_amount"]
[1771999322968,0.47812686,1891.5,1891.0,0.0011]
[1771999322969,0.47712686,1891.4,1891.0,0.0011]
[1771999323137,0.47712686,1891.4,1890.9,0.0011]
[1771999325039,0.47712686,1891.2,1890.9,0.0011]
[1771999325452,0.47712686,1891.4,1890.9,0.45199557]
[1771999325868,0.001,1891.5,1890.9,0.45199557]
[1771999326346,0.001,1891.5,1891.0,0.45089557]
[1771999327579,0.001,1891.5,1891.2,0.45089557]
[1771999329647,0.001,1891.9,1891.3,1.32184211]
[1771999329848,0.002,1891.9,1891.4,0.45089557]
[1771999330546,0.47812686,1891.8,1891.2,1.772764]
[1771999330752,0.47812686,1891.8,1891.3,0.45089557]
[1771999331647,0.47812686,1891.8,1891.4,1.32177223]
[1771999331870,0.47812686,1891.8,1891.5,0.45089557]
[1771999332076,0.47812686,1891.7,1891.3,0.45089557]
[1771999332446,0.001,1891.6,1891.3,0.45089557]
[1771999332645,0.47812686,1891.6,1891.3,0.45089557]
[1771999333172,0.47812686,1891.6,1891.3,1.77273237]
[1771999334279,0.001,1891.6,1891.3,1.77273237]
[1771999334449,0.001,1891.6,1891.3,0.45089557]
[1771999334851,0.001,1891.6,1891.1,6.29517296]
[1771999334852,0.47812686,1891.5,1891.1,0.45089557]
[1771999335054,0.47712686,1891.5,1891.0,0.0011]
[1771999335279,0.47712686,1891.3,1891.0,0.0011]
[1771999335882,0.47812686,1891.2,1891.0,0.0011]
[1771999336083,0.47712686,1891.2,1891.0,0.0011]
[1771999336987,0.47812686,1891.1,1891.0,0.0011]
[1771999337485,0.001,1891.1,1891.0,0.0011]
[1771999337686,1.32275114,1891.5,1891.0,0.45199557]
[1771999337687,0.47812686,1891.5,1891.0,0.45199557]
[1771999338495,0.001,1891.4,1891.0,0.45199557]
[1771999339091,0.001,1891.5,1891.1,1.77287748]
[1771999339263,0.001,1891.4,1891.1,1.77287748]
[1771999340402,0.001,1891.5,1891.1,1.77287748]
[1771999340695,0.001,1891.4,1891.1,1.77287748]
[1771999340991,0.001,1891.4,1891.2,1.77273945]
[1771999341158,0.001,1891.4,1891.2,0.45089557]
[1771999343490,0.001,1891.4,1891.2,1.7728018]
[1771999344093,0.001,1891.5,1891.3,0.45089557]
[1771999345177,0.47812686,1891.9,1891.3,0.45089557]
[1771999345491,0.49658438,1891.8,1891.4,1.79200416]
[1771999347493,0.001,1891.5,1891.4,1.79200416]
[1771999348361,0.22834818,1892.0,1891.5,0.48777743]
[1771999348558,0.49634818,1891.9,1891.5,0.48777743]
[1771999349187,1.32147169,1891.9,1891.5,0.48777743]
[1771999349493,0.49634818,1891.8,1891.2,1.81078342]
[1771999349987,0.49634818,1891.8,1891.3,0.48777743]
[1771999351385,0.49634818,1891.7,1891.3,0.48777743]
[1771999353290,0.49634818,1891.7,1891.4,0.48777743]
[1771999353792,0.49634818,1891.9,1891.4,0.48777743]
[1771999356667,0.49634818,1891.8,1891.2,0.48887743]
[1771999356913,0.49634818,1891.8,1891.2,1.81077732]
[1771999357079,0.27479801,1892.7,1891.8,0.23823193]
[1771999357284,0.49634818,1892.6,1891.6,0.23823193]
[1771999357766,0.49634818,1892.3,1891.6,0.23823193]
[1771999357961,0.49634818,1892.3,1891.2,1.32299989]
[1771999357962,0.49634818,1892.3,1891.3,0.23823193]
[1771999358777,0.001,1891.8,1891.3,0.23823193]
[1771999359198,0.001,1891.8,1891.3,1.56007228]
[1771999359409,0.001,1891.8,1891.4,0.67140757]
[1771999359705,1.81756158,1892.2,1891.7,0.23823193]
[1771999359871,0.49634818,1892.2,1891.8,0.67140757]
[1771999360387,5.28438925,1892.4,1892.0,0.67140757]
[1771999360388,1.81746877,1892.4,1892.0,0.67140757]
[1771999360695,0.49634818,1892.3,1891.8,0.67140757]
[1771999360998,0.49634818,1892.2,1891.7,0.23823193]
[1771999361170,0.49634818,1892.2,1891.6,1.99303477]
[1771999361604,0.49634818,1892.7,1892.1,0.67140757]
[1771999361801,0.49634818,1892.7,1891.9,0.67140757]
[1771999361802,0.49634818,1892.6,1891.9,0.67140757]
[1771999362601,0.49634818,1892.6,1892.0,0.67140757]
[1771999362990,0.49634818,1892.4,1892.0,0.67140757]
[1771999363599,0.49634818,1892.4,1892.2,0.67140757]
[1771999364215,1.81730907,1892.6,1892.2,0.67140757]
[1771999364590,1.81730907,1892.6,1892.3,0.67140757]
[1771999364782,0.49634818,1892.6,1892.3,0.67140757]
[1771999365111,1.81719609,1892.8,1892.4,0.67140757]
[1771999367208,1.81714556,1892.8,1892.5,0.67140757]
[1771999367506,1.81714556,1892.8,1892.4,0.67140757]
[1771999368714,1.81714556,1892.8,1892.5,0.67140757]
[1771999370681,0.001,1892.7,1892.5,0.67140757]
[1771999371213,0.001,1892.7,1892.6,0.67140757]
[1771999371605,0.001,1892.7,1892.5,0.9096395]
[1771999373121,0.49734818,1892.7,1892.1,0.9096395]
[1771999373324,1.81728234,1892.6,1892.1,2.23092161]
[1771999373626,0.49634818,1892.5,1892.2,0.67140757]
[1771999374114,0.49634818,1892.5,1892.3,0.67140757]
[1771999374323,0.001,1892.7,1892.4,0.9096395]
[1771999374550,0.001,1892.7,1892.6,0.67140757]
[1771999374725,0.001,1892.7,1892.5,0.67140757]
[1771999375117,0.001,1892.7,1892.6,0.67140757]
[1771999376825,0.49634818,1893.0,1892.6,2.23057366]
[1771999377039,0.49634818,1893.0,1892.7,0.67140757]
[1771999378039,0.46839676,1893.1,1892.8,0.67140757]
[1771999378341,0.46839676,1893.1,1892.7,0.9096395]
[1771999378945,0.46839676,1893.1,1892.8,0.67140757]
[1771999379243,1.78898341,1893.1,1892.8,0.67140757]
[1771999379446,0.46839676,1893.1,1892.7,0.9096395]
[1771999380155,1.78898978,1893.1,1892.7,0.9096395]
[1771999380752,0.46839676,1893.1,1892.7,0.9096395]
[1771999381244,0.46839676,1893.1,1892.7,2.23049638]
[1771999381546,0.46839676,1893.1,1892.8,0.67140757]
[1771999381745,0.46839676,1893.0,1892.6,0.67140757]
[1771999381944,1.32058781,1893.1,1892.4,0.67140757]
[1771999381945,0.46839676,1892.9,1892.4,0.67140757]
[1771999382146,0.46839676,1892.8,1892.5,0.67140757]
[1771999383555,0.46839676,1892.8,1892.2,0.67140757]
[1771999383859,0.46839676,1892.8,1892.4,0.67140757]
[1771999384319,0.46839676,1892.8,1892.1,1.55946645]
[1771999384320,0.46839676,1892.6,1892.3,0.67140757]
[1771999384648,0.46839676,1892.6,1892.4,0.67140757]
[1771999386051,0.46839676,1892.6,1892.3,0.67140757]
[1771999386841,0.46839676,1892.6,1892.4,0.67140757]
[1771999388724,0.46839676,1892.8,1892.4,0.67140757]
[1771999388922,0.46839676,1892.7,1892.3,0.9096395]
[1771999389169,0.46839676,1892.7,1892.3,2.23078224]
[1771999389445,1.32077734,1892.9,1892.4,0.9096395]
[1771999389623,0.46839676,1892.9,1892.6,0.67140757]
[1771999391956,0.46839676,1892.9,1892.6,0.9096395]
[1771999392539,1.32168868,1893.0,1892.8,0.67140757]
[1771999392540,0.001,1893.0,1892.8,0.67140757]
[1771999393027,0.001,1893.0,1892.7,0.9096395]
[1771999393958,0.001,1893.0,1892.8,0.67140757]
[1771999395654,0.46939676,1893.0,1892.7,0.23823193]
[1771999395825,0.46939676,1893.0,1892.8,0.67140757]
[1771999398970,0.001,1893.0,1892.9,0.67140757]
[1771999399170,0.001,1893.0,1892.9,0.9096395]
[1771999400248,0.001,1893.0,1892.9,0.67140757]
[1771999400781,0.001,1893.0,1892.9,0.9096395]
[1771999400987,1.78893902,1893.2,1892.9,0.9096395]
[1771999401351,1.78893902,1893.2,1892.9,0.23823193]
[1771999401548,0.46839676,1893.1,1892.5,0.0011]
[1771999401778,0.5,1893.0,1892.5,0.0011]
[1771999402874,1.32066369,1893.0,1892.5,1.32209581]
[1771999403081,0.5,1892.9,1892.5,1.32209581]
[1771999403261,0.5,1892.9,1892.6,1.0056477]
[1771999403861,0.5,1893.0,1892.6,1.0056477]
[1771999404075,1.82066594,1893.0,1892.6,1.0056477]
[1771999404774,1.32066594,1893.0,1892.6,1.0056477]
[1771999404977,0.5,1892.9,1892.6,1.0056477]
[1771999407704,0.5,1893.0,1892.6,1.0056477]
[1771999407870,0.5,1893.0,1892.6,2.32657469]
[1771999408082,5.78219474,1893.2,1892.6,1.0056477]
[1771999408394,0.5,1893.1,1892.6,1.0056477]
[1771999409693,0.5,1893.1,1892.7,0.0011]
[1771999410593,1.82065504,1893.0,1892.7,0.0011]
[1771999410775,0.5,1892.9,1892.7,0.0011]
[1771999411378,0.5,1892.9,1892.5,0.0011]
[1771999412004,0.49945,1892.8,1892.5,0.0011]
[1771999413081,0.49945,1892.7,1892.5,0.0011]
[1771999413487,1.82025603,1892.8,1892.5,0.0011]
[1771999415415,1.8202497,1892.8,1892.5,0.0011]
[1771999415614,0.49945,1892.7,1892.2,1.0078477]
[1771999415779,0.49945,1892.7,1892.2,0.0011]
[1771999415780,0.49945,1892.6,1892.2,0.0011]
[1771999418194,0.49945,1892.4,1892.2,0.0011]
[1771999420087,1.82028275,1892.8,1892.3,0.0011]
[1771999420485,0.49945,1892.8,1892.3,0.0011]
[1771999420685,1.82025507,1892.8,1892.3,0.0011]
[1771999421508,0.49945,1892.7,1892.3,0.0011]
[1771999423011,0.49945,1892.6,1892.3,0.0011]
[1771999423184,0.001,1892.5,1892.3,0.0011]
[1771999423605,0.001,1892.5,1892.3,0.0022]
[1771999424911,0.001,1892.5,1892.4,0.0011]
[1771999425609,1.82021499,1892.9,1892.4,0.0011]
[1771999425912,0.49995,1892.8,1892.4,0.0011]
[1771999426920,0.49995,1892.7,1892.3,0.0011]
[1771999427590,0.49995,1892.7,1892.3,1.0067477]
[1771999427787,1.32077057,1892.9,1892.3,1.0067477]
[1771999427788,0.49995,1892.9,1892.3,1.0067477]
[1771999429008,0.49995,1892.9,1892.4,1.32107376]
[1771999429310,1.82068207,1892.9,1892.4,1.32107376]
[1771999429505,0.49995,1892.9,1892.4,1.32107376]
[1771999431818,0.49995,1892.9,1892.5,1.0056477]
[1771999433191,0.49995,1892.9,1892.4,1.32107376]
[1771999433416,0.49995,1892.9,1892.4,2.32672146]
[1771999434010,1.82067492,1892.9,1892.4,1.0056477]
[1771999434216,0.49995,1892.9,1892.4,1.0056477]
[1771999436505,0.49995,1892.9,1892.5,1.32210396]
[1771999436817,0.001,1892.8,1892.5,1.32210396]
[1771999437616,0.001,1892.8,1892.5,1.31667404]
[1771999438015,0.50095,1892.8,1892.3,1.32221793]
[1771999438200,0.50095,1892.8,1892.4,1.0056477]
[1771999439117,0.49995,1892.7,1892.3,0.0011]
[1771999439817,0.001,1892.8,1892.4,1.0056477]
[1771999440195,0.50095,1892.8,1892.4,1.0056477]
[1771999442024,0.50095,1892.8,1892.4,2.32672058]
[1771999443413,1.82174527,1892.8,1892.4,1.0056477]
[1771999443615,0.49995,1892.7,1892.3,0.0011]
[1771999444020,0.49995,1892.7,1892.3,2.32786316]
[1771999444230,0.49995,1892.7,1892.5,1.0056477]
[1771999444394,0.001,1892.8,1892.5,1.47860425]
[1771999444395,0.48442169,1892.8,1892.5,1.47860425]
[1771999446459,0.48342169,1892.7,1892.3,1.0067477]
[1771999446613,0.48342169,1892.7,1892.2,0.0011]
[1771999447136,0.48342169,1892.7,1892.2,1.0067477]
[1771999447339,0.48342169,1892.5,1892.2,1.0067477]
[1771999449446,0.48342169,1892.5,1892.4,0.0011]
[1771999449693,0.48442169,1892.8,1892.4,1.0067477]
[1771999449829,0.48342169,1892.7,1892.4,1.0067477]
[1771999450624,0.48342169,1892.7,1892.4,0.0011]
[1771999455268,0.48342169,1892.6,1892.4,0.0011]
[1771999459481,0.48342169,1892.7,1892.4,0.47405655]
[1771999460349,0.48342169,1892.7,1892.4,0.0011]
[1771999461689,0.48342169,1892.6,1892.4,0.0011]
[1771999462596,0.48342169,1892.6,1892.2,0.0011]
[1771999463480,0.48342169,1892.4,1892.2,0.0011]
[1771999464260,0.48342169,1892.4,1892.1,0.0011]
[1771999465685,0.45225409,1892.2,1892.1,0.0011]
[1771999466795,0.45225409,1892.1,1891.9,0.0011]
[1771999467791,1.81839437,1892.0,1891.9,0.0011]
[1771999467995,0.49704131,1892.0,1891.9,0.0011]
[1771999468174,0.49704131,1892.1,1891.9,0.67197071]
[1771999468379,0.49704131,1892.1,1891.9,0.0011]
[1771999469790,1.81832707,1892.1,1891.9,0.0011]
[1771999470192,0.49704131,1892.1,1891.9,0.0011]
[1771999470999,0.49704131,1892.0,1891.8,0.0011]
[1771999471795,1.81840224,1892.0,1891.8,0.0011]
[1771999473970,0.49704131,1891.9,1891.8,0.0011]
[1771999475978,1.81846421,1891.9,1891.8,0.0011]
[1771999476598,0.49704131,1891.9,1891.8,0.0011]
[1771999478104,1.81846421,1891.9,1891.8,0.0011]
[1771999478997,0.49704131,1891.8,1891.5,0.0011]
[1771999480295,0.49704131,1891.6,1891.5,0.0011]
[1771999481809,0.49704131,1891.9,1891.5,0.49281944]
[1771999482097,0.49704131,1891.9,1891.6,0.49171944]
[1771999482475,0.49704131,1891.9,1891.6,1.16259015]
[1771999482669,0.49704131,1891.9,1891.6,0.49171944]
[1771999486609,5.28499942,1892.2,1891.6,0.49171944]
[1771999486818,0.49704131,1892.1,1891.7,1.16259015]
[1771999487114,0.49704131,1892.0,1891.7,0.49171944]
[1771999487406,0.49704131,1892.0,1891.7,0.49281944]
[1771999487605,0.001,1891.8,1891.7,0.49281944]
[1771999497518,1.78781223,1892.4,1891.8,0.45592418]
[1771999497726,0.46673847,1892.3,1891.9,0.67087071]
[1771999500018,0.46673847,1892.3,1891.9,1.12679489]
[1771999500230,0.001,1892.2,1891.9,1.12679489]
[1771999500816,0.001,1892.2,1892.0,0.45592418]
[1771999501319,0.46673847,1892.4,1892.1,1.12679489]
[1771999501696,0.46773847,1892.6,1892.3,1.12679489]
[1771999502128,0.001,1892.6,1892.4,0.45592418]
[1771999503019,0.001,1892.6,1892.5,1.12679489]
[1771999503419,0.001,1892.6,1892.5,0.45592418]
[1771999503718,0.001,1892.6,1892.4,0.45592418]
[1771999505219,0.001,1892.6,1892.5,0.67087071]
[1771999505431,0.001,1892.6,1892.5,1.12679489]
[1771999505594,0.001,1892.6,1892.5,0.67087071]
[1771999505794,0.001,1892.6,1892.3,1.12679489]
[1771999507744,0.46773847,1892.6,1892.1,0.45592418]
[1771999507907,0.46773847,1892.6,1892.2,0.67087071]
[1771999508304,0.46773847,1892.6,1892.2,1.12679489]
[1771999508551,0.46773847,1892.6,1892.4,0.67087071]
[1771999508828,0.46773847,1892.7,1892.4,1.12679489]
[1771999509028,0.46773847,1892.7,1892.6,0.67087071]
[1771999509527,0.46773847,1892.7,1892.4,1.12679489]
[1771999509936,0.46773847,1892.7,1892.5,0.45592418]
[1771999509937,0.001,1892.7,1892.5,0.45592418]
[1771999510120,0.001,1892.7,1892.6,0.67087071]
[1771999511665,0.001,1892.7,1892.5,0.45592418]
[1771999512634,0.001,1892.6,1892.5,0.45592418]
[1771999515958,0.001,1892.7,1892.5,1.77692814]
[1771999516161,0.001,1892.7,1892.6,1.12679489]
[1771999516937,0.46673847,1892.9,1892.6,2.44771841]
[1771999517261,0.46673847,1892.9,1892.6,1.12679489]
[1771999519658,0.46673847,1893.1,1892.7,0.45592418]
[1771999519859,1.13760918,1892.9,1892.3,0.0011]
[1771999520060,0.46673847,1892.8,1892.3,0.0011]
[1771999520239,0.46673847,1892.8,1892.3,1.99310982]
[1771999520445,0.46673847,1892.8,1892.3,2.449034]
[1771999520961,0.46673847,1892.8,1892.3,1.12789489]
[1771999521160,0.46673847,1892.8,1892.3,0.0011]
[1771999522066,1.32086437,1892.7,1892.3,0.0011]
[1771999522255,0.46673847,1892.6,1892.3,0.0011]
[1771999524905,1.0063025,1893.1,1892.3,0.0011]
[1771999524906,0.46673847,1892.9,1892.6,0.45592418]
[1771999525068,0.001,1892.7,1892.4,1.46332668]
[1771999525392,0.496227,1892.7,1892.4,0.0011]
[1771999532875,0.001,1892.7,1892.5,0.48139353]
[1771999533193,0.49242538,1892.7,1892.4,0.48249353]
[1771999533396,1.81329119,1892.7,1892.4,0.48249353]
[1771999533611,0.49242538,1892.7,1892.4,0.48249353]
[1771999533769,1.32186497,1892.7,1892.4,0.0011]
[1771999533971,0.49142538,1892.6,1892.4,0.0011]
[1771999534501,1.81236997,1892.6,1892.4,0.0011]
[1771999534999,0.49142538,1892.6,1892.4,0.0011]
[1771999541229,0.49142538,1892.6,1892.2,0.0011]
[1771999541230,0.49142538,1892.5,1892.2,0.0011]
[1771999541841,0.49142538,1892.5,1892.2,0.48249353]
[1771999543318,1.81243334,1892.5,1892.2,0.48249353]
[1771999543640,0.49142538,1892.5,1892.2,0.48249353]
[1771999544212,1.81245158,1892.5,1892.2,0.48249353]
[1771999544630,0.49142538,1892.5,1892.2,0.48249353]
[1771999546044,0.49142538,1892.6,1892.2,0.48249353]
[1771999547053,0.49142538,1892.2,1892.0,0.0011]
[1771999547336,0.49142538,1892.1,1892.0,0.0011]
[1771999548235,0.49142538,1892.1,1891.7,0.0011]
[1771999548745,0.49142538,1892.0,1891.7,0.0011]
[1771999548953,0.49142538,1892.0,1891.8,0.0011]
[1771999549237,0.49142538,1892.0,1891.5,0.0011]
[1771999549408,0.49142538,1891.8,1891.5,0.0011]
[1771999551615,0.49142538,1891.6,1891.5,0.0011]
[1771999555266,0.49142538,1891.6,1891.5,0.0011]
[1771999556757,1.32128323,1892.1,1891.6,0.48502393]
[1771999556955,1.80987753,1892.1,1891.7,0.48502393]
[1771999557160,0.4885943,1892.0,1891.7,0.48502393]
[1771999557558,1.32128323,1892.1,1891.7,0.48502393]
[1771999557860,1.80987753,1892.1,1891.7,0.48502393]
[1771999560760,0.001,1892.0,1891.7,0.48502393]
[1771999561565,0.4895943,1892.0,1891.7,0.48502393]
[1771999561750,0.4895943,1892.0,1891.6,0.48612393]
[1771999561950,0.4895943,1892.0,1891.6,0.0011]
[1771999562145,0.4885943,1891.9,1891.4,0.0011]
[1771999562339,0.4885943,1891.5,1891.4,0.0011]
[1771999562542,1.81029665,1891.5,1891.4,0.0011]
[1771999563169,0.4885943,1891.4,1891.3,0.0011]
[1771999563566,0.4885943,1891.4,1891.0,0.0011]
[1771999563567,0.4885943,1891.3,1891.0,0.0011]
[1771999563765,0.4885943,1891.1,1890.7,0.0011]
[1771999564843,0.4885943,1890.9,1890.7,0.0011]
[1771999566980,1.81078596,1890.8,1890.7,0.0011]
[1771999567286,0.4885943,1890.7,1890.5,0.0011]
[1771999567583,0.4885943,1890.7,1890.5,0.0022]
[1771999569386,1.81085807,1890.7,1890.5,0.0022]
[1771999570488,0.4885943,1890.7,1890.5,0.0022]
[1771999572114,0.4885943,1891.2,1890.7,0.48502393]
[1771999572429,0.4885943,1891.7,1891.1,0.48502393]
[1771999572593,0.4885943,1891.7,1891.2,1.49132643]
[1771999573207,1.81022497,1891.7,1891.2,1.49132643]
[1771999573621,0.4885943,1891.7,1891.2,2.81322902]
[1771999573789,1.8100495,1891.9,1891.5,0.48502393]
[1771999574526,0.4885943,1891.9,1891.5,0.48502393]
[1771999574730,1.32240194,1892.0,1891.5,0.48502393]
[1771999575023,1.32240194,1892.0,1891.6,1.49242643]
[1771999575024,0.001,1892.0,1891.6,1.49242643]
[1771999575237,0.001,1892.0,1891.6,1.80665115]
[1771999575592,0.001,1892.0,1891.7,0.48612393]
[1771999577095,0.4895943,1892.0,1891.7,0.0011]
[1771999577308,1.32240754,1892.0,1891.7,0.0011]
[1771999577492,1.32240754,1892.0,1891.5,1.80672524]
[1771999577694,1.32240754,1892.0,1891.6,0.0011]
[1771999577916,0.001,1892.0,1891.6,0.48612393]
[1771999578106,1.80976679,1892.3,1891.7,0.48502393]
[1771999578620,0.4885943,1892.2,1891.7,0.48502393]
[1771999578820,0.4885943,1892.2,1891.8,0.0011]
[1771999578999,0.4885943,1892.2,1891.5,1.80672524]
[1771999579200,0.4885943,1892.2,1891.6,0.0011]
[1771999579401,0.4885943,1892.0,1891.6,0.0011]
[1771999580531,0.4885943,1892.0,1891.5,1.80672218]
[1771999580825,0.4885943,1892.0,1891.6,0.0011]
[1771999581407,1.80999597,1892.0,1891.6,0.0011]
[1771999581803,0.4885943,1891.9,1891.6,0.0011]
[1771999584329,1.32149275,1891.8,1891.3,1.80686373]
[1771999584525,1.32149275,1891.8,1889.8,1.58853259]
[1771999584526,0.4885943,1891.7,1891.4,0.0011]
[1771999584727,0.4885943,1891.7,1891.1,1.80698542]
[1771999585102,1.32149275,1891.8,1891.2,0.48612393]
[1771999585303,0.4895943,1891.9,1891.5,0.0011]
[1771999585902,1.81101854,1891.9,1891.5,0.0011]
[1771999586099,0.4895943,1891.9,1891.5,0.0011]
[1771999586721,0.4895943,1891.9,1891.5,0.48922604]
[1771999586931,1.81102013,1891.9,1891.5,0.48922604]
[1771999587120,0.4895943,1891.9,1891.5,0.48922604]
[1771999588770,1.81102157,1891.9,1891.5,0.48922604]
[1771999589513,0.001,1891.9,1891.6,0.49628341]
[1771999590449,0.4699128,1891.9,1891.6,0.0011]
[1771999590623,0.4699128,1891.9,1891.6,0.49628341]
[1771999590624,0.001,1891.9,1891.6,0.49628341]
[1771999592057,0.001,1891.9,1891.6,0.49518341]
[1771999592752,0.001,1891.9,1891.6,1.81680709]
[1771999592931,0.001,1891.9,1891.7,0.49518341]
[1771999594537,0.001,1891.9,1891.8,0.0011]
[1771999600168,0.001,1891.9,1891.8,0.49628341]
[1771999600376,0.001,1891.9,1891.8,0.0011]
[1771999600753,0.001,1891.9,1891.8,0.49628341]
[1771999601088,0.001,1891.9,1891.8,1.16755321]
[1771999605278,1.78991676,1892.5,1891.9,0.49518341]
[1771999605458,0.4689128,1892.5,1892.2,0.6712698]
[1771999606077,0.4689128,1892.5,1892.0,1.16645321]
[1771999607449,0.4689128,1892.4,1892.0,1.16645321]
[1771999607672,0.4689128,1892.4,1892.0,2.48779629]
[1771999607870,0.4689128,1892.4,1891.9,0.49518341]
[1771999608080,0.4689128,1892.4,1891.9,0.49628341]
[1771999608876,0.4689128,1892.4,1891.9,0.49738341]
[1771999609049,0.4689128,1892.4,1891.9,0.49628341]
[1771999609249,0.001,1892.3,1891.9,0.49628341]
[1771999609578,1.78603626,1892.3,1891.9,0.49628341]
[1771999611078,0.001,1892.3,1892.1,0.49103355]
[1771999611479,0.001,1892.3,1892.2,1.16230335]
[1771999611649,0.001,1892.3,1892.0,0.6723698]
[1771999611848,0.46486531,1892.3,1892.0,0.6723698]
[1771999612278,0.46486531,1892.3,1891.9,0.0011]
[1771999612474,0.46486531,1892.3,1891.9,0.0022]
[1771999613075,0.46486531,1892.3,1891.9,0.49323355]
[1771999613253,0.001,1892.3,1892.2,0.6712698]
[1771999613452,0.001,1892.3,1892.2,1.16230335]
[1771999613677,0.001,1892.6,1892.3,0.49103355]
[1771999613870,0.001,1892.6,1892.4,1.16340335]
[1771999614065,0.001,1892.6,1892.4,1.16230335]
[1771999614267,1.78462028,1892.9,1892.5,0.49213355]
[1771999615173,0.46386531,1892.9,1892.5,0.49213355]
[1771999615396,1.78459362,1892.9,1892.5,0.49103355]
[1771999615600,0.46386531,1892.9,1892.5,0.49103355]
[1771999615795,1.78459444,1892.9,1892.5,0.49103355]
[1771999616299,1.78459444,1892.9,1892.6,0.0011]
[1771999616888,0.45735269,1892.8,1892.6,0.0011]
[1771999617272,1.77808182,1892.9,1892.6,0.0011]
[1771999617503,0.45735269,1892.8,1892.1,0.49994946]
[1771999617797,0.45735269,1892.8,1892.3,0.49994946]
[1771999618099,1.77806401,1893.0,1892.3,0.49994946]
[1771999618683,0.45735269,1892.9,1892.3,0.49994946]
[1771999621308,1.77811838,1892.9,1892.4,0.49994946]
[1771999621475,0.001,1892.8,1892.4,0.49994946]
[1771999623523,0.001,1892.8,1892.5,0.49994946]
[1771999624581,0.45835269,1892.8,1892.5,0.49994946]
[1771999624885,0.45835269,1892.8,1892.3,0.49994946]
[1771999625519,0.45735269,1892.6,1892.1,0.49994946]
[1771999625687,0.45735269,1892.6,1892.0,0.0011]
[1771999626007,0.39735269,1892.6,1892.0,0.50104946]
[1771999628112,0.45735269,1892.5,1892.1,0.49994946]
[1771999628615,1.3218006,1892.8,1892.3,0.49994946]
[1771999629112,1.77915329,1892.8,1892.3,0.49994946]
[1771999629409,0.45735269,1892.7,1892.1,0.49994946]
[1771999630224,0.45735269,1892.6,1892.2,0.49994946]
[1771999632344,0.45735269,1892.4,1892.0,0.50104946]
[1771999632845,0.45735269,1892.4,1892.0,0.0011]
[1771999633029,0.45735269,1892.4,1892.1,0.0011]
[1771999634570,1.77849498,1892.4,1892.1,0.0011]
[1771999636174,1.77842747,1892.4,1892.1,0.50104946]
[1771999637775,1.77842747,1892.4,1892.1,0.0011]
[1771999638147,1.32107478,1892.4,1892.1,0.0011]
[1771999638348,1.32107478,1892.4,1892.1,0.50104946]
[1771999638676,1.32107478,1892.4,1892.2,0.67105681]
[1771999638979,0.45735269,1892.3,1891.9,0.0011]
[1771999639192,1.77856609,1892.2,1891.9,0.0011]
[1771999640565,0.45735269,1892.1,1891.9,0.0011]
[1771999641646,1.32135306,1892.0,1891.9,0.0011]
[1771999643455,1.77870575,1892.0,1891.9,0.0011]
[1771999643877,1.32135306,1892.0,1891.7,0.0011]
[1771999644180,0.45735269,1891.9,1891.7,0.0011]
[1771999645792,1.32149275,1891.8,1891.7,0.0011]
[1771999646153,1.00714501,1892.3,1891.7,0.0011]
[1771999646154,1.32110516,1892.4,1891.8,0.47418673]
[1771999646376,1.32110516,1892.4,1891.7,0.0011]
[1771999646377,0.001,1892.3,1892.1,0.47418673]
[1771999647059,0.001,1892.3,1891.9,0.45741784]
[1771999647673,0.001,1892.2,1891.9,0.45741784]
[1771999648687,0.001,1892.1,1891.7,0.45851784]
[1771999648886,0.001,1892.1,1891.7,1.78007864]
[1771999649092,0.001,1892.1,1891.8,0.45741784]
[1771999649887,1.8092543,1892.2,1891.8,0.45741784]
[1771999650065,0.001,1892.0,1891.7,0.0011]
[1771999650572,0.48900398,1892.0,1891.7,0.0011]
[1771999651889,1.80940143,1892.0,1891.7,0.0011]
[1771999654108,0.48900398,1891.9,1891.7,0.0011]
[1771999655400,0.001,1891.8,1891.7,0.0011]
[1771999657494,1.32249275,1891.8,1891.7,0.0011]
[1771999659496,1.81049673,1891.8,1891.7,0.0011]
[1771999661798,0.48800398,1891.7,1891.4,0.45851784]
[1771999662702,0.001,1891.6,1891.4,0.45851784]
[1771999663802,1.80949042,1891.9,1891.5,0.45741784]
[1771999664391,0.48800398,1891.8,1891.5,0.45741784]
[1771999664594,1.80949042,1891.9,1891.5,0.45741784]
[1771999665122,1.32240617,1892.0,1891.6,0.45741784]
[1771999665280,0.48800398,1891.9,1891.6,0.45741784]
[1771999665787,0.48800398,1891.9,1891.4,0.45851784]
[1771999667408,1.32149275,1891.8,1891.4,0.45851784]
[1771999668002,1.80949673,1891.8,1891.4,0.45851784]
[1771999668182,0.48800398,1891.7,1891.4,0.45851784]
[1771999668581,0.48800398,1891.7,1891.4,0.0011]
[1771999669076,0.48800398,1891.7,1891.5,0.0011]
[1771999669512,1.80963646,1891.6,1891.5,0.0011]
[1771999670082,0.48800398,1891.5,1891.2,0.45851784]
[1771999672618,1.32177223,1891.4,1891.2,0.0011]
[1771999672803,1.80977621,1891.4,1891.2,0.0011]
[1771999678001,0.48800398,1891.4,1891.2,0.0011]
[1771999678202,0.47884764,1891.5,1891.2,0.48585562]
[1771999679128,14.12453244,1891.9,1891.2,0.48585562]
[1771999679129,5.7649216,1891.8,1891.4,0.48475562]
[1771999679431,0.47884764,1891.7,1891.4,0.48475562]
[1771999681233,1.80046118,1891.7,1891.4,0.48475562]
[1771999690341,1.80039924,1891.8,1891.5,0.48475562]
[1771999691349,0.001,1891.9,1891.5,0.48475562]
[1771999691545,0.001,1891.9,1891.7,0.48475562]
[1771999694545,5.28458314,1892.3,1891.7,0.48475562]
[1771999694546,1.7999214,1892.4,1891.9,0.48475562]
[1771999694845,0.47884764,1892.3,1891.9,0.48475562]
[1771999696126,1.79990728,1892.5,1891.9,0.48475562]
[1771999696532,1.799971,1892.4,1891.9,0.48475562]
[1771999697824,0.47884764,1892.3,1891.9,0.48475562]
[1771999699152,0.47884764,1892.5,1892.1,0.48475562]
[1771999699324,1.3219884,1892.6,1891.9,1.32136215]
[1771999699325,1.80078397,1892.6,1892.3,0.48475562]
[1771999701052,0.47884764,1892.5,1892.2,0.48475562]
[1771999701627,0.47884764,1892.4,1892.0,1.00716926]
[1771999701827,0.47884764,1892.4,1892.0,2.32851817]
[1771999702033,0.47884764,1892.4,1892.0,2.81327379]
[1771999702458,0.47884764,1892.4,1892.1,0.48475562]
[1771999702657,0.47884764,1892.4,1892.0,2.32851817]
[1771999702658,0.47984764,1892.6,1892.3,1.00716926]
[1771999702961,0.47984764,1892.6,1892.2,0.48475562]